{"text_format":"1","workbook":"xlsx","n_sheets":4,"sheets":["Поиск","Должен выглядеть результ поиск ","База","Значения стемм"],"not_rendered":{"charts":0,"images":0,"macros":1,"external_links":0,"defined_names":0,"comments":0,"pivot_tables":0},"unopened":[],"bounds":{"document_bytes":16777216,"sheet_cells":100000,"rows_first":2000,"rows_last":500,"rows_between":2000,"halvings":0,"cell_chars":16384,"cell_head_chars":4096},"cells_cut":0,"cells_raw":0,"read":"whole","date_system":"1900"}

{"sheet":"Поиск","index":0,"n_rows":90,"n_cols":11,"rows_kept":90,"cut":false,"hidden":false,"merged":[]}
[]
["Афон"]
[]
[]
["№ п/п2"]
[1,623,null,"А590 из 1-2 Рука",null,null,"Ахтинаме Мухамед","Подданные и христиане","О взаимоуавжение и о льготах христианам","1; 2.4; 8; 22.21; 22.19",{"$f":"FinderArr(База!$J6,\"; \",Таблица2[],2)","v":"Вселенский; Афон (Прот), Росикон и Афон"}]
[{"$f":"A6+1","v":2},676,null,null,"+",null,"Конст. IV Погонат","Афон","Поселение монахов","1; 22.21; 8",{"$f":"FinderArr(База!$J7,\"; \",Таблица2[],2)","v":"Византия (Греческая нация); Вселенский; Афон (Прот), Росикон и Афон"}]
[{"$f":"A7+1","v":3},726,null,null,"+",null,"Лев III, Исавр","Афон","Поселение валахов","1; 22.21; 8",{"$f":"FinderArr(База!$J8,\"; \",Таблица2[],2)","v":"Византия (Греческая нация); Валахия (Муктения); Афон (Прот), Росикон и Афон"}]
[4,830,null,null,"+",null,"Араб. пираты","Афон","II опустошение","1; 22.21; 46",{"$f":"FinderArr(База!$J9,\"; \",Таблица2[],2)","v":"Византия (Греческая нация); Афон (Прот), Росикон и Афон"}]
[5,843,null,null,"+",null,"Афонские монахи","Мефодий I","Иконо-почетание","2.1; 22.21",{"$f":"FinderArr(База!$J10,\"; \",Таблица2[],2)","v":"Византия (Греческая нация); Финансирование и защита; Афон (Прот), Росикон и Афон; Нормативно-правовые документы (Уставы, централизованное финансирование при императорах, нормативные ограничения)"}]
[6,860,null,null,"+",null,"Росы","Константинополь- инициатор","Приобщение к божьему крещению","1; 2.1; 22.21",{"$f":"FinderArr(База!$J11,\"; \",Таблица2[],2)","v":"Византия (Греческая нация); Нормативно-правовые документы (Уставы, централизованное финансирование при императорах, нормативные ограничения); Афон (Прот), Росикон и Афон; Вселенский"}]
[7,865,null,null,"+",null,"Василий I","Афон","II поселение  валахов","1; 15; 22.21",{"$f":"FinderArr(База!$J12,\"; \",Таблица2[],2)","v":"Византия (Греческая нация); Афон (Прот), Росикон и Афон"}]
[8,872,null,null,"+",null,"Василий I","Афон","Защита","1; 22.21",{"$f":"FinderArr(База!$J13,\"; \",Таблица2[],2)","v":"Византия (Греческая нация); Афон (Прот), Росикон и Афон"}]
[9,883,1,null,null,null,"Василий I","Колову","Неприкосновенность монахов , Прот","1; 3; 22.21; 6",{"$f":"FinderArr(База!$J14,\"; \",Таблица2[],2)","v":"Иериссовский владыка; Вселенский; Афон (Прот), Росикон и Афон"}]
[10,883,2,null,"+",null,"Василий I","Афон","Устав Древнейший","1; 6; 22.21; 2.1",{"$f":"FinderArr(База!$J15,\"; \",Таблица2[],2)","v":"Византия (Греческая нация); Афон (Прот), Росикон и Афон"}]
[11,885,null,null,"+",null,"Василий I","Афон","Защита","1; 22.21",{"$f":"FinderArr(База!$J16,\"; \",Таблица2[],2)","v":"Византия (Греческая нация); Афон (Прот), Росикон и Афон"}]
[12,886,null,null,"+",null,"Лев VI","Колову","Милость","1; 22.21",{"$f":"FinderArr(База!$J17,\"; \",Таблица2[],2)","v":"Византия (Греческая нация); Афон (Прот), Росикон и Афон; Император, Патриарх"}]
[13,886,null,null,"+",null,"Митрополит Солунский","Афон","Учрежд. Епископа Иериссовского","5; 2.1; 22.21",{"$f":"FinderArr(База!$J18,\"; \",Таблица2[],2)","v":"Византия (Греческая нация); Афон (Прот), Росикон и Афон; Финансирование и защита"}]
[14,887,null,null,"+",null,"Лев VI","Прот","Восстан. Справедлив. границ.","1; 22.21",{"$f":"FinderArr(База!$J19,\"; \",Таблица2[],2)","v":"Византия (Греческая нация); Афон (Прот), Росикон и Афон; Нормативно-правовые документы (Уставы, централизованное финансирование при императорах, нормативные ограничения)"}]
[15,908,null,null,"+",null,"Лев VI","Прот","Восстан. границы с Колову","1; 22.21",{"$f":"FinderArr(База!$J20,\"; \",Таблица2[],2)","v":"Метохи и дл. дарение; Афон (Прот), Росикон и Афон; Византия (Греческая нация)"}]
[16,920,null,null,null,null,"Константин VII","Проту","О правах подтверждение Афонских монахов","1; 22.21; 4",{"$f":"FinderArr(База!$J21,\"; \",Таблица2[],2)","v":"Византия (Греческая нация); Афон (Прот), Росикон и Афон"}]
[17,921,null,null,"+",null,"Роман I ","Все монастыри","Руга","1; 22.21; 3",{"$f":"FinderArr(База!$J22,\"; \",Таблица2[],2)","v":"Византия (Греческая нация); Афон (Прот), Росикон и Афон"}]
[18,934,null,null,"+",null,"Роман I","Афон","Привилегии","1; 22.21; 6",{"$f":"FinderArr(База!$J23,\"; \",Таблица2[],2)","v":"Византия (Греческая нация); Афон (Прот), Росикон и Афон"}]
[19,941,null,null,"+",null,"Роман I","Кассандра","Продажа земли","45; 22.21; 1",{"$f":"FinderArr(База!$J24,\"; \",Таблица2[],2)","v":"Византия (Греческая нация); Келлии"}]
[20,942,1,null,"+",null,"Фома Солунский","Начальство","Межевание Афона","1; 22.21",{"$f":"FinderArr(База!$J25,\"; \",Таблица2[],2)","v":"Византия (Греческая нация); Росикон; Метохи и дл. дарение"}]
[21,942,2,null,"+",null,"Роман I","Афон","Денежное довольствие","1; 22.21",{"$f":"FinderArr(База!$J26,\"; \",Таблица2[],2)","v":"Византия (Греческая нация); Афон (Прот), Росикон и Афон; Болгария"}]
[22,943,null,null,"+",null,"Солунский Катаколон","Афон","Границы с Иериссом","1; 22.21",{"$f":"FinderArr(База!$J27,\"; \",Таблица2[],2)","v":"Византия (Греческая нация); Арабы; Лавра"}]
[23,945,null,null,"+",null,"Конст. VII","Афон","Защита Афона от мирян","1; 22.22",{"$f":"FinderArr(База!$J28,\"; \",Таблица2[],2)","v":"Византия (Греческая нация); Лавра"}]
[24,956,null,null,"+",null,"Конст. VII","Игумен Пантелеимона","Метох Кассандра","1; 22.19; 45; 26",{"$f":"FinderArr(База!$J29,\"; \",Таблица2[],2)","v":0}]
[25,959,null,null,"+",null,"Роман II","Колова","Поселение болгар в Ериссо","1; 22.21; 12",{"$f":"FinderArr(База!$J30,\"; \",Таблица2[],2)","v":0}]
[26,963,null,null,"+",null,"Роман II","Св-во","Русские солдаты","21; 1; 8; 22.1",{"$f":"FinderArr(База!$J31,\"; \",Таблица2[],2)","v":0}]
[27,964,1,null,"+",null,"Никифор II","Лавра","Привилегии","1; 22.1",{"$f":"FinderArr(База!$J32,\"; \",Таблица2[],2)","v":0}]
[]
["№ п/п2"]
[1,623,null,"А590 из 1-2 Рука",null,null,"Ахтинаме Мухамед","Подданные и христиане","О взаимоуавжение и о льготах христианам","1; 2.4; 8; 22.21; 22.19",{"$f":"FinderArr(База!$J35,\"; \",Таблица2[],2)","v":0}]
[{"$f":"A35+1","v":2},676,null,null,"+",null,"Конст. IV Погонат","Афон","Поселение монахов","1; 22.21; 8",{"$f":"FinderArr(База!$J36,\"; \",Таблица2[],2)","v":0}]
[{"$f":"A36+1","v":3},726,null,null,"+",null,"Лев III, Исавр","Афон","Поселение валахов","1; 22.21; 8",{"$f":"FinderArr(База!$J37,\"; \",Таблица2[],2)","v":0}]
[4,830,null,null,"+",null,"Араб. пираты","Афон","II опустошение","1; 22.21; 46",{"$f":"FinderArr(База!$J38,\"; \",Таблица2[],2)","v":0}]
[5,843,null,null,"+",null,"Афонские монахи","Мефодий I","Иконо-почетание","2.1; 22.21",{"$f":"FinderArr(База!$J39,\"; \",Таблица2[],2)","v":0}]
[6,860,null,null,"+",null,"Росы","Константинополь- инициатор","Приобщение к божьему крещению","1; 2.1; 22.21",{"$f":"FinderArr(База!$J40,\"; \",Таблица2[],2)","v":0}]
[7,865,null,null,"+",null,"Василий I","Афон","II поселение  валахов","1; 15; 22.21",{"$f":"FinderArr(База!$J41,\"; \",Таблица2[],2)","v":0}]
[8,872,null,null,"+",null,"Василий I","Афон","Защита","1; 22.21",{"$f":"FinderArr(База!$J42,\"; \",Таблица2[],2)","v":0}]
[9,883,1,null,null,null,"Василий I","Колову","Неприкосновенность монахов , Прот","1; 3; 22.21; 6",{"$f":"FinderArr(База!$J43,\"; \",Таблица2[],2)","v":0}]
[10,883,2,null,"+",null,"Василий I","Афон","Устав Древнейший","1; 6; 22.21; 2.1",{"$f":"FinderArr(База!$J44,\"; \",Таблица2[],2)","v":0}]
[11,885,null,null,"+",null,"Василий I","Афон","Защита","1; 22.21",{"$f":"FinderArr(База!$J45,\"; \",Таблица2[],2)","v":0}]
[12,886,null,null,"+",null,"Лев VI","Колову","Милость","1; 22.21",{"$f":"FinderArr(База!$J46,\"; \",Таблица2[],2)","v":0}]
[13,886,null,null,"+",null,"Митрополит Солунский","Афон","Учрежд. Епископа Иериссовского","5; 2.1; 22.21",{"$f":"FinderArr(База!$J47,\"; \",Таблица2[],2)","v":0}]
[14,887,null,null,"+",null,"Лев VI","Прот","Восстан. Справедлив. границ.","1; 22.21",{"$f":"FinderArr(База!$J48,\"; \",Таблица2[],2)","v":0}]
[15,908,null,null,"+",null,"Лев VI","Прот","Восстан. границы с Колову","1; 22.21",{"$f":"FinderArr(База!$J49,\"; \",Таблица2[],2)","v":0}]
[16,920,null,null,null,null,"Константин VII","Проту","О правах подтверждение Афонских монахов","1; 22.21; 4",{"$f":"FinderArr(База!$J50,\"; \",Таблица2[],2)","v":0}]
[17,921,null,null,"+",null,"Роман I ","Все монастыри","Руга","1; 22.21; 3",{"$f":"FinderArr(База!$J51,\"; \",Таблица2[],2)","v":0}]
[18,934,null,null,"+",null,"Роман I","Афон","Привилегии","1; 22.21; 6",{"$f":"FinderArr(База!$J52,\"; \",Таблица2[],2)","v":0}]
[19,941,null,null,"+",null,"Роман I","Кассандра","Продажа земли","45; 22.21; 1",{"$f":"FinderArr(База!$J53,\"; \",Таблица2[],2)","v":0}]
[20,942,1,null,"+",null,"Фома Солунский","Начальство","Межевание Афона","1; 22.21",{"$f":"FinderArr(База!$J54,\"; \",Таблица2[],2)","v":0}]
[21,942,2,null,"+",null,"Роман I","Афон","Денежное довольствие","1; 22.21",{"$f":"FinderArr(База!$J55,\"; \",Таблица2[],2)","v":0}]
[22,943,null,null,"+",null,"Солунский Катаколон","Афон","Границы с Иериссом","1; 22.21",{"$f":"FinderArr(База!$J56,\"; \",Таблица2[],2)","v":0}]
[23,945,null,null,"+",null,"Конст. VII","Афон","Защита Афона от мирян","1; 22.22",{"$f":"FinderArr(База!$J57,\"; \",Таблица2[],2)","v":0}]
[24,956,null,null,"+",null,"Конст. VII","Игумен Пантелеимона","Метох Кассандра","1; 22.19; 45; 26",{"$f":"FinderArr(База!$J58,\"; \",Таблица2[],2)","v":0}]
[25,959,null,null,"+",null,"Роман II","Колова","Поселение болгар в Ериссо","1; 22.21; 12",{"$f":"FinderArr(База!$J59,\"; \",Таблица2[],2)","v":0}]
[26,963,null,null,"+",null,"Роман II","Св-во","Русские солдаты","21; 1; 8; 22.1",{"$f":"FinderArr(База!$J60,\"; \",Таблица2[],2)","v":0}]
[27,964,1,null,"+",null,"Никифор II","Лавра","Привилегии","1; 22.1",{"$f":"FinderArr(База!$J61,\"; \",Таблица2[],2)","v":0}]
[]
["№ п/п2"]
[1,623,null,"А590 из 1-2 Рука",null,null,"Ахтинаме Мухамед","Подданные и христиане","О взаимоуавжение и о льготах христианам","1; 2.4; 8; 22.21; 22.19",{"$f":"FinderArr(База!$J64,\"; \",Таблица2[],2)","v":0}]
[{"$f":"A64+1","v":2},676,null,null,"+",null,"Конст. IV Погонат","Афон","Поселение монахов","1; 22.21; 8",{"$f":"FinderArr(База!$J65,\"; \",Таблица2[],2)","v":0}]
[{"$f":"A65+1","v":3},726,null,null,"+",null,"Лев III, Исавр","Афон","Поселение валахов","1; 22.21; 8",{"$f":"FinderArr(База!$J66,\"; \",Таблица2[],2)","v":0}]
[4,830,null,null,"+",null,"Араб. пираты","Афон","II опустошение","1; 22.21; 46",{"$f":"FinderArr(База!$J67,\"; \",Таблица2[],2)","v":0}]
[5,843,null,null,"+",null,"Афонские монахи","Мефодий I","Иконо-почетание","2.1; 22.21",{"$f":"FinderArr(База!$J68,\"; \",Таблица2[],2)","v":0}]
[6,860,null,null,"+",null,"Росы","Константинополь- инициатор","Приобщение к божьему крещению","1; 2.1; 22.21",{"$f":"FinderArr(База!$J69,\"; \",Таблица2[],2)","v":0}]
[7,865,null,null,"+",null,"Василий I","Афон","II поселение  валахов","1; 15; 22.21",{"$f":"FinderArr(База!$J70,\"; \",Таблица2[],2)","v":0}]
[8,872,null,null,"+",null,"Василий I","Афон","Защита","1; 22.21",{"$f":"FinderArr(База!$J71,\"; \",Таблица2[],2)","v":0}]
[9,883,1,null,null,null,"Василий I","Колову","Неприкосновенность монахов , Прот","1; 3; 22.21; 6",{"$f":"FinderArr(База!$J72,\"; \",Таблица2[],2)","v":0}]
[10,883,2,null,"+",null,"Василий I","Афон","Устав Древнейший","1; 6; 22.21; 2.1",{"$f":"FinderArr(База!$J73,\"; \",Таблица2[],2)","v":0}]
[11,885,null,null,"+",null,"Василий I","Афон","Защита","1; 22.21",{"$f":"FinderArr(База!$J74,\"; \",Таблица2[],2)","v":0}]
[12,886,null,null,"+",null,"Лев VI","Колову","Милость","1; 22.21",{"$f":"FinderArr(База!$J75,\"; \",Таблица2[],2)","v":0}]
[13,886,null,null,"+",null,"Митрополит Солунский","Афон","Учрежд. Епископа Иериссовского","5; 2.1; 22.21",{"$f":"FinderArr(База!$J76,\"; \",Таблица2[],2)","v":0}]
[14,887,null,null,"+",null,"Лев VI","Прот","Восстан. Справедлив. границ.","1; 22.21",{"$f":"FinderArr(База!$J77,\"; \",Таблица2[],2)","v":0}]
[15,908,null,null,"+",null,"Лев VI","Прот","Восстан. границы с Колову","1; 22.21",{"$f":"FinderArr(База!$J78,\"; \",Таблица2[],2)","v":0}]
[16,920,null,null,null,null,"Константин VII","Проту","О правах подтверждение Афонских монахов","1; 22.21; 4",{"$f":"FinderArr(База!$J79,\"; \",Таблица2[],2)","v":0}]
[17,921,null,null,"+",null,"Роман I ","Все монастыри","Руга","1; 22.21; 3",{"$f":"FinderArr(База!$J80,\"; \",Таблица2[],2)","v":0}]
[18,934,null,null,"+",null,"Роман I","Афон","Привилегии","1; 22.21; 6",{"$f":"FinderArr(База!$J81,\"; \",Таблица2[],2)","v":0}]
[19,941,null,null,"+",null,"Роман I","Кассандра","Продажа земли","45; 22.21; 1",{"$f":"FinderArr(База!$J82,\"; \",Таблица2[],2)","v":0}]
[20,942,1,null,"+",null,"Фома Солунский","Начальство","Межевание Афона","1; 22.21",{"$f":"FinderArr(База!$J83,\"; \",Таблица2[],2)","v":0}]
[21,942,2,null,"+",null,"Роман I","Афон","Денежное довольствие","1; 22.21",{"$f":"FinderArr(База!$J84,\"; \",Таблица2[],2)","v":0}]
[22,943,null,null,"+",null,"Солунский Катаколон","Афон","Границы с Иериссом","1; 22.21",{"$f":"FinderArr(База!$J85,\"; \",Таблица2[],2)","v":0}]
[23,945,null,null,"+",null,"Конст. VII","Афон","Защита Афона от мирян","1; 22.22",{"$f":"FinderArr(База!$J86,\"; \",Таблица2[],2)","v":0}]
[24,956,null,null,"+",null,"Конст. VII","Игумен Пантелеимона","Метох Кассандра","1; 22.19; 45; 26",{"$f":"FinderArr(База!$J87,\"; \",Таблица2[],2)","v":0}]
[25,959,null,null,"+",null,"Роман II","Колова","Поселение болгар в Ериссо","1; 22.21; 12",{"$f":"FinderArr(База!$J88,\"; \",Таблица2[],2)","v":0}]
[26,963,null,null,"+",null,"Роман II","Св-во","Русские солдаты","21; 1; 8; 22.1",{"$f":"FinderArr(База!$J89,\"; \",Таблица2[],2)","v":0}]
[27,964,1,null,"+",null,"Никифор II","Лавра","Привилегии","1; 22.1",{"$f":"FinderArr(База!$J90,\"; \",Таблица2[],2)","v":0}]

{"sheet":"Должен выглядеть результ поиск ","index":1,"n_rows":48,"n_cols":11,"rows_kept":48,"cut":false,"hidden":false,"merged":[]}
[]
["Афон"]
[]
[{"$f":"Таблица1[[#Headers],[Год]]","v":"Год"}]
[]
[{"$f":"Таблица1[[#Headers],[Адресант]]","v":"Адресант"}]
[5,843,null,null,"+",null,"Афонские монахи","Мефодий I","Иконо-почетание","2.1; 22.21","Вселенский; Афон (Прот), Росикон и Афон"]
[]
[{"$f":"Таблица1[[#Headers],[Адресат]]","v":"Адресат"}]
[2,676,null,null,"+",null,"Конст. IV Погонат","Афон","Поселение монахов","1; 22.21; 8","Византия (Греческая нация); Афон (Прот), Росикон и Афон; Арабы"]
[3,726,null,null,"+",null,"Лев III, Исавр","Афон","Поселение валахов","1; 22.21; 8","Византия (Греческая нация); Афон (Прот), Росикон и Афон; Арабы"]
[4,830,null,null,"+",null,"Араб. пираты","Афон","II опустошение","1; 22.21; 46","Византия (Греческая нация); Афон (Прот), Росикон и Афон; Запустения"]
[7,865,null,null,"+",null,"Василий I","Афон","II поселение  валахов","1; 15; 22.21","Византия (Греческая нация); Валахия (Муктения); Афон (Прот), Росикон и Афон"]
[8,872,null,null,"+",null,"Василий I","Афон","Защита","1; 22.21","Византия (Греческая нация); Афон (Прот), Росикон и Афон"]
[10,883,2,null,"+",null,"Василий I","Афон","Устав Древнейший","1; 6; 22.21; 2.1","Византия (Греческая нация); Нормативно-правовые документы (Уставы, централизованное финансирование при императорах, нормативные ограничения); Афон (Прот), Росикон и Афон; Вселенский"]
[11,885,null,null,"+",null,"Василий I","Афон","Защита","1; 22.21","Византия (Греческая нация); Афон (Прот), Росикон и Афон"]
[13,886,null,null,"+",null,"Митрополит Солунский","Афон","Учрежд. Епископа Иериссовского","5; 2.1; 22.21","Иериссовский владыка; Вселенский; Афон (Прот), Росикон и Афон"]
[18,934,null,null,"+",null,"Роман I","Афон","Привилегии","1; 22.21; 6","Византия (Греческая нация); Афон (Прот), Росикон и Афон; Нормативно-правовые документы (Уставы, централизованное финансирование при императорах, нормативные ограничения)"]
[21,942,2,null,"+",null,"Роман I","Афон","Денежное довольствие","1; 22.21","Византия (Греческая нация); Афон (Прот), Росикон и Афон"]
[22,943,null,null,"+",null,"Солунский Катаколон","Афон","Границы с Иериссом","1; 22.21","Византия (Греческая нация); Афон (Прот), Росикон и Афон"]
[23,945,null,null,"+",null,"Конст. VII","Афон","Защита Афона от мирян","1; 22.22","Византия (Греческая нация); Келлии"]
[]
[{"$f":"Таблица1[[#Headers],[Объект]]","v":"Объект"}]
[]
[{"$f":"Таблица1[[#Headers],[Значения стемм]]","v":"Значения стемм"}]
[1,623,null,"А590 из 1-2 Рука",null,null,"Ахтинаме Мухамед","Подданные и христиане","О взаимоуавжение и о льготах христианам","1; 2.4; 8; 22.21; 22.19","Византия (Греческая нация); Иерусалимкий; Арабы; Афон (Прот), Росикон и Афон; Росикон"]
[2,676,null,null,"+",null,"Конст. IV Погонат","Афон","Поселение монахов","1; 22.21; 8","Византия (Греческая нация); Афон (Прот), Росикон и Афон; Арабы"]
[3,726,null,null,"+",null,"Лев III, Исавр","Афон","Поселение валахов","1; 22.21; 8","Византия (Греческая нация); Афон (Прот), Росикон и Афон; Арабы"]
[4,830,null,null,"+",null,"Араб. пираты","Афон","II опустошение","1; 22.21; 46","Византия (Греческая нация); Афон (Прот), Росикон и Афон; Запустения"]
[5,843,null,null,"+",null,"Афонские монахи","Мефодий I","Иконо-почетание","2.1; 22.21","Вселенский; Афон (Прот), Росикон и Афон"]
[6,860,null,null,"+",null,"Росы","Константинополь- инициатор","Приобщение к божьему крещению","1; 2.1; 22.21","Византия (Греческая нация); Вселенский; Афон (Прот), Росикон и Афон"]
[7,865,null,null,"+",null,"Василий I","Афон","II поселение  валахов","1; 15; 22.21","Византия (Греческая нация); Валахия (Муктения); Афон (Прот), Росикон и Афон"]
[8,872,null,null,"+",null,"Василий I","Афон","Защита","1; 22.21","Византия (Греческая нация); Афон (Прот), Росикон и Афон"]
[9,883,1,null,null,null,"Василий I","Колову","Неприкосновенность монахов , Прот","1; 3; 22.21; 6","Византия (Греческая нация); Финансирование и защита; Афон (Прот), Росикон и Афон; Нормативно-правовые документы (Уставы, централизованное финансирование при императорах, нормативные ограничения)"]
[10,883,2,null,"+",null,"Василий I","Афон","Устав Древнейший","1; 6; 22.21; 2.1","Византия (Греческая нация); Нормативно-правовые документы (Уставы, централизованное финансирование при императорах, нормативные ограничения); Афон (Прот), Росикон и Афон; Вселенский"]
[11,885,null,null,"+",null,"Василий I","Афон","Защита","1; 22.21","Византия (Греческая нация); Афон (Прот), Росикон и Афон"]
[12,886,null,null,"+",null,"Лев VI","Колову","Милость","1; 22.21","Византия (Греческая нация); Афон (Прот), Росикон и Афон"]
[13,886,null,null,"+",null,"Митрополит Солунский","Афон","Учрежд. Епископа Иериссовского","5; 2.1; 22.21","Иериссовский владыка; Вселенский; Афон (Прот), Росикон и Афон"]
[14,887,null,null,"+",null,"Лев VI","Прот","Восстан. Справедлив. границ.","1; 22.21","Византия (Греческая нация); Афон (Прот), Росикон и Афон"]
[15,908,null,null,"+",null,"Лев VI","Прот","Восстан. границы с Колову","1; 22.21","Византия (Греческая нация); Афон (Прот), Росикон и Афон"]
[16,920,null,null,null,null,"Константин VII","Проту","О правах подтверждение Афонских монахов","1; 22.21; 4","Византия (Греческая нация); Афон (Прот), Росикон и Афон; Император, Патриарх"]
[17,921,null,null,"+",null,"Роман I ","Все монастыри","Руга","1; 22.21; 3","Византия (Греческая нация); Афон (Прот), Росикон и Афон; Финансирование и защита"]
[18,934,null,null,"+",null,"Роман I","Афон","Привилегии","1; 22.21; 6","Византия (Греческая нация); Афон (Прот), Росикон и Афон; Нормативно-правовые документы (Уставы, централизованное финансирование при императорах, нормативные ограничения)"]
[19,941,null,null,"+",null,"Роман I","Кассандра","Продажа земли","45; 22.21; 1","Метохи и дл. дарение; Афон (Прот), Росикон и Афон; Византия (Греческая нация)"]
[20,942,1,null,"+",null,"Фома Солунский","Начальство","Межевание Афона","1; 22.21","Византия (Греческая нация); Афон (Прот), Росикон и Афон"]
[21,942,2,null,"+",null,"Роман I","Афон","Денежное довольствие","1; 22.21","Византия (Греческая нация); Афон (Прот), Росикон и Афон"]
[22,943,null,null,"+",null,"Солунский Катаколон","Афон","Границы с Иериссом","1; 22.21","Византия (Греческая нация); Афон (Прот), Росикон и Афон"]
[25,959,null,null,"+",null,"Роман II","Колова","Поселение болгар в Ериссо","1; 22.21; 12","Византия (Греческая нация); Афон (Прот), Росикон и Афон; Болгария"]

{"sheet":"База","index":2,"n_rows":28,"n_cols":11,"rows_kept":28,"cut":false,"hidden":false,"merged":[]}
["№ п/п2","Год","Шифр ППАР","Собр.","Наследие","Фоновое","Адресант","Адресат","Объект","№ стемм","Значения стемм"]
[1,623,null,"А590 из 1-2 Рука",null,null,"Ахтинаме Мухамед","Подданные и христиане","О взаимоуавжение и о льготах христианам","1; 2.4; 8; 22.21; 22.19",{"$f":"FinderArr(База!$J2,\"; \",Таблица2[],2)","v":"Византия (Греческая нация); Иерусалимкий; Арабы; Афон (Прот), Росикон и Афон; Росикон"}]
[{"$f":"A2+1","v":2},676,null,null,"+",null,"Конст. IV Погонат","Афон","Поселение монахов","1; 22.21; 8",{"$f":"FinderArr(База!$J3,\"; \",Таблица2[],2)","v":"Византия (Греческая нация); Афон (Прот), Росикон и Афон; Арабы"}]
[{"$f":"A3+1","v":3},726,null,null,"+",null,"Лев III, Исавр","Афон","Поселение валахов","1; 22.21; 8",{"$f":"FinderArr(База!$J4,\"; \",Таблица2[],2)","v":"Византия (Греческая нация); Афон (Прот), Росикон и Афон; Арабы"}]
[4,830,null,null,"+",null,"Араб. пираты","Афон","II опустошение","1; 22.21; 46",{"$f":"FinderArr(База!$J5,\"; \",Таблица2[],2)","v":"Византия (Греческая нация); Афон (Прот), Росикон и Афон; Запустения"}]
[5,843,null,null,"+",null,"Афонские монахи","Мефодий I","Иконо-почетание","2.1; 22.21",{"$f":"FinderArr(База!$J6,\"; \",Таблица2[],2)","v":"Вселенский; Афон (Прот), Росикон и Афон"}]
[6,860,null,null,"+",null,"Росы","Константинополь- инициатор","Приобщение к божьему крещению","1; 2.1; 22.21",{"$f":"FinderArr(База!$J7,\"; \",Таблица2[],2)","v":"Византия (Греческая нация); Вселенский; Афон (Прот), Росикон и Афон"}]
[7,865,null,null,"+",null,"Василий I","Афон","II поселение  валахов","1; 15; 22.21",{"$f":"FinderArr(База!$J8,\"; \",Таблица2[],2)","v":"Византия (Греческая нация); Валахия (Муктения); Афон (Прот), Росикон и Афон"}]
[8,872,null,null,"+",null,"Василий I","Афон","Защита","1; 22.21",{"$f":"FinderArr(База!$J9,\"; \",Таблица2[],2)","v":"Византия (Греческая нация); Афон (Прот), Росикон и Афон"}]
[9,883,1,null,null,null,"Василий I","Колову","Неприкосновенность монахов , Прот","1; 3; 22.21; 6",{"$f":"FinderArr(База!$J10,\"; \",Таблица2[],2)","v":"Византия (Греческая нация); Финансирование и защита; Афон (Прот), Росикон и Афон; Нормативно-правовые документы (Уставы, централизованное финансирование при императорах, нормативные ограничения)"}]
[10,883,2,null,"+",null,"Василий I","Афон","Устав Древнейший","1; 6; 22.21; 2.1",{"$f":"FinderArr(База!$J11,\"; \",Таблица2[],2)","v":"Византия (Греческая нация); Нормативно-правовые документы (Уставы, централизованное финансирование при императорах, нормативные ограничения); Афон (Прот), Росикон и Афон; Вселенский"}]
[11,885,null,null,"+",null,"Василий I","Афон","Защита","1; 22.21",{"$f":"FinderArr(База!$J12,\"; \",Таблица2[],2)","v":"Византия (Греческая нация); Афон (Прот), Росикон и Афон"}]
[12,886,null,null,"+",null,"Лев VI","Колову","Милость","1; 22.21",{"$f":"FinderArr(База!$J13,\"; \",Таблица2[],2)","v":"Византия (Греческая нация); Афон (Прот), Росикон и Афон"}]
[13,886,null,null,"+",null,"Митрополит Солунский","Афон","Учрежд. Епископа Иериссовского","5; 2.1; 22.21",{"$f":"FinderArr(База!$J14,\"; \",Таблица2[],2)","v":"Иериссовский владыка; Вселенский; Афон (Прот), Росикон и Афон"}]
[14,887,null,null,"+",null,"Лев VI","Прот","Восстан. Справедлив. границ.","1; 22.21",{"$f":"FinderArr(База!$J15,\"; \",Таблица2[],2)","v":"Византия (Греческая нация); Афон (Прот), Росикон и Афон"}]
[15,908,null,null,"+",null,"Лев VI","Прот","Восстан. границы с Колову","1; 22.21",{"$f":"FinderArr(База!$J16,\"; \",Таблица2[],2)","v":"Византия (Греческая нация); Афон (Прот), Росикон и Афон"}]
[16,920,null,null,null,null,"Константин VII","Проту","О правах подтверждение Афонских монахов","1; 22.21; 4",{"$f":"FinderArr(База!$J17,\"; \",Таблица2[],2)","v":"Византия (Греческая нация); Афон (Прот), Росикон и Афон; Император, Патриарх"}]
[17,921,null,null,"+",null,"Роман I ","Все монастыри","Руга","1; 22.21; 3",{"$f":"FinderArr(База!$J18,\"; \",Таблица2[],2)","v":"Византия (Греческая нация); Афон (Прот), Росикон и Афон; Финансирование и защита"}]
[18,934,null,null,"+",null,"Роман I","Афон","Привилегии","1; 22.21; 6",{"$f":"FinderArr(База!$J19,\"; \",Таблица2[],2)","v":"Византия (Греческая нация); Афон (Прот), Росикон и Афон; Нормативно-правовые документы (Уставы, централизованное финансирование при императорах, нормативные ограничения)"}]
[19,941,null,null,"+",null,"Роман I","Кассандра","Продажа земли","45; 22.21; 1",{"$f":"FinderArr(База!$J20,\"; \",Таблица2[],2)","v":"Метохи и дл. дарение; Афон (Прот), Росикон и Афон; Византия (Греческая нация)"}]
[20,942,1,null,"+",null,"Фома Солунский","Начальство","Межевание Афона","1; 22.21",{"$f":"FinderArr(База!$J21,\"; \",Таблица2[],2)","v":"Византия (Греческая нация); Афон (Прот), Росикон и Афон"}]
[21,942,2,null,"+",null,"Роман I","Афон","Денежное довольствие","1; 22.21",{"$f":"FinderArr(База!$J22,\"; \",Таблица2[],2)","v":"Византия (Греческая нация); Афон (Прот), Росикон и Афон"}]
[22,943,null,null,"+",null,"Солунский Катаколон","Афон","Границы с Иериссом","1; 22.21",{"$f":"FinderArr(База!$J23,\"; \",Таблица2[],2)","v":"Византия (Греческая нация); Афон (Прот), Росикон и Афон"}]
[23,945,null,null,"+",null,"Конст. VII","Афон","Защита Афона от мирян","1; 22.22",{"$f":"FinderArr(База!$J24,\"; \",Таблица2[],2)","v":"Византия (Греческая нация); Келлии"}]
[24,956,null,null,"+",null,"Конст. VII","Игумен Пантелеимона","Метох Кассандра","1; 22.19; 45; 26",{"$f":"FinderArr(База!$J25,\"; \",Таблица2[],2)","v":"Византия (Греческая нация); Росикон; Метохи и дл. дарение"}]
[25,959,null,null,"+",null,"Роман II","Колова","Поселение болгар в Ериссо","1; 22.21; 12",{"$f":"FinderArr(База!$J26,\"; \",Таблица2[],2)","v":"Византия (Греческая нация); Афон (Прот), Росикон и Афон; Болгария"}]
[26,963,null,null,"+",null,"Роман II","Св-во","Русские солдаты","21; 1; 8; 22.1",{"$f":"FinderArr(База!$J27,\"; \",Таблица2[],2)","v":"Византия (Греческая нация); Арабы; Лавра"}]
[27,964,1,null,"+",null,"Никифор II","Лавра","Привилегии","1; 22.1",{"$f":"FinderArr(База!$J28,\"; \",Таблица2[],2)","v":"Византия (Греческая нация); Лавра"}]

{"sheet":"Значения стемм","index":3,"n_rows":249,"n_cols":2,"rows_kept":249,"cut":false,"hidden":false,"merged":[]}
["№ стеммы","Название стеммы"]
[1,"Византия (Греческая нация)"]
[2,"Восточные патриархи "]
["2.1","Вселенский"]
["2.2","Александрийский"]
["2.3","Антиохийский"]
["2.4","Иерусалимкий"]
[3,"Финансирование и защита"]
[4,"Император, Патриарх"]
[5,"Иериссовский владыка"]
[6,"Нормативно-правовые документы (Уставы, централизованное финансирование при императорах, нормативные ограничения)"]
[7,"Соборные обращения"]
[8,"Арабы"]
[9,"Трапезунд"]
[9,"Эпир"]
[10,"Никел"]
[11,"Морея"]
[12,"Болгария"]
["12.1","П-х"]
["12.2","Охрида"]
[13,"Сербия"]
["13.1","Неманичи"]
["13.2","Мривавчевичи"]
["13.3","Хребляновичи"]
["13.4","Бранковичи"]
["13.5","Делковичи"]
["13.6","Патриарх (архиепископ) Сербии"]
[14,"Турция"]
["14.1","Крымские татары"]
[15,"Валахия (Муктения)"]
["15.1","Семиградье"]
[16,"Молдавия"]
[17,"Черкесская земля"]
[18,"Греция"]
["18.1","Украина Гетманская (Малороссия)"]
["18.2","Донские козаки"]
[19,"Рим, Папа"]
["19.1","Латинская империя"]
["19.2","Фессалоникийское королевство"]
["19.3","Венеция"]
["19.4","Иоаниты (Родос)"]
["19.5","Речь Поспалитая"]
["19.6","Франция"]
["19.7","Австрия (Венгрия)"]
["19.8","Арагон"]
["19.9","Бенедектинцы"]
["19.10","Иерусалимское королевство (1099-1187)"]
["19.11","Ливонский орден"]
["19.12","Литва (до 1569 года)"]
["19.13","Униаты"]
["19.14","Шведы"]
["19.15","Орден Василиан (Орудие Папы)"]
["19.16","Лютеране"]
["22","Монастыри"]
["22.1","Лавра"]
["22.2","Дохиар"]
["22.3","Ксеноф"]
["22.4","Эсфигмен"]
["22.5","Ватопед"]
["22.6","Кутлумуш"]
["22.7","Карахали"]
["22.8","Ставроникита"]
["22.9","Ивер"]
["22.10","Пантократор"]
["22.11","Филофей"]
["22.12","Симопопетра"]
["22.13","Хиландар"]
["22.14","Ксиропотам"]
["22.15","Григориат"]
["22.16","Св. Павел"]
["22.17","Дионисиат"]
["22.18","Зограф"]
["22.19","Росикон"]
["22.20","Кастомонит"]
["22.21","Афон (Прот), Росикон и Афон"]
["22.22","Келлии"]
["23","Скиты"]
["27","Россия"]
["27.1","Древнерусское княжество (862-1130)"]
["27.2","Смоленские земли (1057-1401; 1408-1653)"]
["27.3","Рязанское княжество (1129-1237)"]
["27.4","Киевское княжество (1130-1240)"]
["27.5","Псковская республика (1130-1250)"]
["27.6","Новгородская республика (1136-1478)"]
["27.7","Галицко_Волынское княжество (1144-1199-1253)"]
["27.8","Владимирско-Суздальское княжество (1157-1350)"]
["27.9","Тверское княжество (1247-1485)"]
["27.10","Московское княжество (с 1260)"]
["28","Ходатайства 3-их лиц"]
["29","Русские святые афониты"]
["29.1","Антоний Печерский"]
["29.2","Саава Сербский, глава Сербской Церкви (серб)"]
["29.3","Аммон монах Печерский"]
["29.4","Исаиа Афонский"]
["29.5","Киприан митрополит"]
["29.6","Сергий Вологодский"]
["29.7","Дионисий, архиепископ Ростовский (грек)"]
["29.8","Арсений Коневский"]
["29.9","Саава Крыпецкий, Псковский"]
["29.10","Саава Вышерский"]
["29.11","Нил Сорский"]
["29.12","Антоний Карсотис Карейский"]
["29.13","Иннокунтий Вологодский"]
["29.14","Максим Грек, монах"]
["29.15","Афанасий III Патриарх Вселенский (грек)"]
["29.16","Пахомий"]
["29.17","Константин Русский (Политанский)"]
["29.18","Агапий Ректор Афонской академии (грек)"]
["29.19","Василий поляномерульский (учитель Паисия) (валах)"]
["29.20","Игнатий Митрополит Мариупольский"]
["29.21","Паисий Величковский"]
["29.22","Никита Славянин, Афонский"]
["29.23","Григорий VI Вселенский патриарх"]
["29.24","Иларион Канчавели (грузин)"]
["29.25","Антипа Афонский Валаамский (влах)"]
["29.26","Гавриил Афонский"]
["29.27","Николай II Александрович"]
["29.28","Аристоклий"]
["29.29","Данакт (Калашников)"]
["29.30","Гавриил (Гур)"]
["29.31","Гавриил (Владимиров)"]
["29.32","Иларион (Цуриков)"]
["29.33","Иоанн (Лаба)"]
["29.34","Силуан Афонский"]
["29.35","Иларион (Громов)"]
["29.36","Иона (Санков)"]
["29.37","Антоний (Корж)"]
["29.38","Димитрий (Спиридонов)"]
["29.39","Антипа (Кириллов)"]
["29.40","Кукша Одесский"]
["30","Государственные послы в Восточные Патриархии"]
["34","Борис Годунов"]
["35","Мазепа И.С."]
["36","Афон и дворянство"]
["37","Россия и Восточные Патриархии"]
["38","Россия и Греческое духовенство (вцелом)"]
["39","Греки и Россия"]
["41","Богословие"]
["41.1","Ереси"]
["42","Образование"]
["44","Описи актов Росикона"]
["45","Метохи и дл. дарение"]
["45.1","Кассандра"]
["45.2","Ревеникия"]
["45.3","Метох + 4 поля"]
["45.4","О совокупных владениях угодий"]
["45.5","1347 (1)"]
["45.6","1347 (7) Лимнос 1583 (2)"]
["45.7","1354 (1) Анциста"]
["45.8","1364 Бресница"]
["46","Запустения"]
["47","Послания (в т.ч. Максима Греке)"]
["48","Посещения (значимые)"]
["49","Вторжения, землетрясения"]
["50","Пристани"]
["51","Книги (из Россия) на Афон"]
["52","Книги с Афона в Россию"]
["53","Версия: Основатели Росикона"]
["54","Лжеперсоны"]
["55","Храмы и параклисы (скиты, келии, каливы и т.п.)"]
["56","Пантелемоновский собор (поддержание состояния здания и др. строений)"]
["57","Греки в России"]
["58","Маршруты"]
["59","Русские монастыри имевшие связи с Афоном"]
["59.1","Киево-Печерская лавра"]
["59.2","Лисицкий монатырь Великий Новгород"]
["59.3","Троице-Сергиева лавра"]
["59.4","Спассо-Каменный монастырь Кубенское озеро на ЮВ от Кириллова"]
["59.5","Коневецкий Рождественский монастырь Ладожское озеро Западный берег"]
["59.6","Печерский Вознесенский монастырь Н.Новгород"]
["59.7","Спасо-Прилуцкий Дмитриев м-рь Вологда"]
["59.8","Савво-Сретенский м-рь Вел. Новгород"]
["59.9","В.-Новгородский Савво-Вишерский м-рь"]
["59.10","Павло-Обнорский м-рь Вологодская земля"]
["59.11","Спасо- Преображенский скит Вологодская земля"]
["59.12","Николо-Угрешский м-рь Москва"]
["59.13","Калязин Тверской Троицкий м-рь"]
["59.14","Кирилло-Белозерский м-рь"]
["59.15","Нило-Сорская пустынь"]
["59.16","Спасо-Евфимиевский Суздальский м-рь (имеющий Благовещенский храм)"]
["59.17","Спасо-Преображенский Комельский Вологодская земля"]
["59.18","Чудов м-рь Москва"]
["59.19","Отроч. Успенский м-рь Тверь"]
["59.20","Иосифо-Волоколамский м-рь Москва"]
["59.21","Николаевский Греческий м-рь Москва"]
["59.22","Заиконоспасский м-рь Москва"]
["59.23","Богоявленский м-рь Москва"]
["59.24","Воздвиженский м-рь Москва"]
["59.25","Киевский Екатерининский греческий м-рь"]
["59.26","Ново-Спасский м-рь Москва"]
["59.27","Иверский Валдайский м-рь Тверь"]
["59.28","Успенский Богородицкий монастырь в Свияжке Казань"]
["59.29","Соловецкий м-рь Новгород"]
["59.30","Воскресенский монастырь \"Новый Иерусалим\" Москва"]
["59.31","Кожерожский Богоявленский м-рь (на СВ от Онежского озера)"]
["59.32","Саввин-Сторожевский м-рь Москва"]
["59.33","Валаамский м-рь Ладожское озеро"]
["59.34","Ново-Афонский скит Абхазия"]
["59.35","Покровский м-рь Москва"]
["59.36","Одесское подворье Росикона"]
["59.37","Кизильташская св. Стефана Сирожского киновия (Крым, Судак)"]
["59.38","Свято-Успенский Одесский м-рь"]
["59.39","Успения Погаевская Лавра Кременец"]
["59.40","Московское Афонское подворье"]
["59.41","Цареградское подворье"]
["59.42","Мгорский Спасо-Преображенский монастырь г. Лубен"]
["59.43","Андрониевский м-рь"]
["59.44","Богоявленский м-рь Часовня в 1873 г."]
["59.45"]
["59.46"]
["59.47"]
["59.48"]
["59.49"]
["59.50","Кривоозерская п-нь Иерусалимская"]
["59.51","Свияжский м-рь"]
["59.52","Спасский Яросл. 1632 (2)"]
["59.53","Неизвестный м-рь"]
["59.54","Симонов м-рь"]
["59.55","Губенский м-рь"]
["59.56","Киево-Никольский м-рь"]
["59.57","Чудов м-рь "]
["59.58","Новодевичий м-рь"]
["59.59","Тверской Троицкий (1475)"]
["60","Драки"]
["61","Паломничества"]
["62","Привилегии, милостыня"]
["62.1","Палестанский штат"]
["63","Монастыри не Афонские и не Русские"]
["64","Святыни"]
["65"]
["66","на Государеву службу ПМЖ"]
["67","Выкупленные"]
["71","М.Г. (Вас. Копыл Спячий)"]
["72","Ризы"]
["73","М-т Иоасаф"]
["74","Исайя Павловский"]
["75","Никадим Росиконовский"]
["76","Глава Иоанна Златоустого"]
["77","Портаитисса I"]
["78","Портаитисса II"]
["79","Арсений Суханов"]
["80","Протосингел Иосиф"]
["81","Никодим Ватопедский"]
["82","Гавриил Росиконовский"]
["83","П-х Игнатий Ериссовский"]
["84","м-т Арсений Элассонский"]
["85","Архимандрит Афонский Дионисий"]
["86"]
["87","Традиции создания Росикона"]